[Event "Titled Tuesday Blitz March 01 Late 2022"]
[White "Novikova, Galina"]
[Black "Kovanova, Baira"]
[WhiteFideId "4157095"]
[BlackFideId "4164083"]
[WhiteElo "1863"]
[BlackElo "2190"]
[Result "1-0"]
[Round "08"]
[TimeControl "180+1"]
[Date "2022.03.02"]
[WhiteClock "0:00:32"]
[BlackClock "0:00:17"]

1. e4 {[%clk 0:03:00]}  e5 {[%clk 0:02:59]} 2. Nf3 {[%clk 0:03:01]}  Nc6 {[%clk 0:02:58]} 3. d4 {[%clk 0:03:02]}  exd4 {[%clk 0:02:58]} 4. Nxd4 {[%clk 0:03:02]}  Nf6 {[%clk 0:02:58]} 5. Nxc6 {[%clk 0:03:03]}  bxc6 {[%clk 0:02:58]} 6. Qe2 {[%clk 0:03:04]}  Qe7 {[%clk 0:02:54]} 7. Nc3 {[%clk 0:03:04]}  a5 {[%clk 0:02:50]} 8. Bg5 {[%clk 0:03:02]}  h6 {[%clk 0:02:45]} 9. Bh4 {[%clk 0:03:01]}  Ba6 {[%clk 0:02:42]} 10. Qe3 {[%clk 0:03:01]}  Bxf1 {[%clk 0:02:39]} 11. Rxf1 {[%clk 0:03:02]}  g5 {[%clk 0:02:23]} 12. Bg3 {[%clk 0:03:00]}  a4 {[%clk 0:02:18]} 13. O-O-O {[%clk 0:02:56]}  Bg7 {[%clk 0:02:12]} 14. Bxc7 {[%clk 0:02:54]}  a3 {[%clk 0:01:39]} 15. b3 {[%clk 0:02:54]}  O-O {[%clk 0:01:26]} 16. Bd6 {[%clk 0:02:49]}  Qe6 {[%clk 0:01:26]} 17. Bxf8 {[%clk 0:02:29]}  Ng4 {[%clk 0:01:26]} 18. Qg3 {[%clk 0:01:17]}  Rxf8 {[%clk 0:01:08]} 19. h4 {[%clk 0:01:16]}  Be5 {[%clk 0:01:04]} 20. Qd3 {[%clk 0:01:11]}  Qf6 {[%clk 0:01:00]} 21. Na4 {[%clk 0:01:04]}  Ra8 {[%clk 0:00:54]} 22. c3 {[%clk 0:00:49]}  Nxf2 {[%clk 0:00:47]} 23. Qe2 {[%clk 0:00:44]}  Rxa4 {[%clk 0:00:31]} 24. Rxf2 {[%clk 0:00:44]}  Bf4+ {[%clk 0:00:30]} 25. Kc2 {[%clk 0:00:39]}  Ra8 {[%clk 0:00:28]} 26. g3 {[%clk 0:00:36]}  Qe5 {[%clk 0:00:20]} 27. gxf4 {[%clk 0:00:34]}  gxf4 {[%clk 0:00:20]} 28. Qg4+ {[%clk 0:00:34]}  Kf8 {[%clk 0:00:20]} 29. Qxf4 {[%clk 0:00:34]}  Qe6 {[%clk 0:00:20]} 30. Qf5 {[%clk 0:00:33]}  Qe7 {[%clk 0:00:17]} 31. Rxd7 {[%clk 0:00:32]} 1-0


[Site "https://www.chess.com"]

[Event "Titled Tuesday Blitz March 01 Late 2022"]
[White "P., Komal Kishore"]
[Black "Jarocka, Liwia"]
[WhiteFideId "5016703"]
[BlackFideId "21807558"]
[WhiteElo "2100"]
[BlackElo "1896"]
[Result "1-0"]
[Round "08"]
[TimeControl "180+1"]
[Date "2022.03.02"]
[WhiteClock "0:00:22"]
[BlackClock "0:00:03"]

1. e4 {[%clk 0:03:00]}  c5 {[%clk 0:02:59]} 2. Nf3 {[%clk 0:02:59]}  d6 {[%clk 0:03:00]} 3. Bb5+ {[%clk 0:02:58]}  Bd7 {[%clk 0:02:59]} 4. Bxd7+ {[%clk 0:02:58]}  Qxd7 {[%clk 0:03:00]} 5. O-O {[%clk 0:02:58]}  Nf6 {[%clk 0:02:57]} 6. Qe2 {[%clk 0:02:57]}  e5 {[%clk 0:02:57]} 7. c4 {[%clk 0:02:55]}  Be7 {[%clk 0:02:56]} 8. d3 {[%clk 0:02:55]}  O-O {[%clk 0:02:56]} 9. Bg5 {[%clk 0:02:53]}  Ne8 {[%clk 0:02:56]} 10. Be3 {[%clk 0:02:52]}  Nc7 {[%clk 0:02:54]} 11. Nc3 {[%clk 0:02:51]}  Nc6 {[%clk 0:02:54]} 12. a3 {[%clk 0:02:50]}  a5 {[%clk 0:02:51]} 13. Rab1 {[%clk 0:02:44]}  Kh8 {[%clk 0:02:50]} 14. Nd5 {[%clk 0:02:34]}  Nxd5 {[%clk 0:02:47]} 15. cxd5 {[%clk 0:02:34]}  Nd8 {[%clk 0:02:42]} 16. b4 {[%clk 0:02:25]}  axb4 {[%clk 0:02:38]} 17. axb4 {[%clk 0:02:25]}  b6 {[%clk 0:02:38]} 18. bxc5 {[%clk 0:02:23]}  bxc5 {[%clk 0:02:39]} 19. Rb6 {[%clk 0:02:20]}  f5 {[%clk 0:02:38]} 20. Rfb1 {[%clk 0:02:17]}  Qa4 {[%clk 0:02:19]} 21. exf5 {[%clk 0:02:00]}  Qg4 {[%clk 0:02:17]} 22. Nd4 {[%clk 0:01:44]}  Qxe2 {[%clk 0:02:05]} 23. Nxe2 {[%clk 0:01:43]}  Nf7 {[%clk 0:01:54]} 24. g4 {[%clk 0:01:39]}  Bg5 {[%clk 0:01:45]} 25. Bxg5 {[%clk 0:01:33]}  Nxg5 {[%clk 0:01:46]} 26. Rxd6 {[%clk 0:01:32]}  Ra2 {[%clk 0:01:41]} 27. Nc3 {[%clk 0:01:27]}  Rc2 {[%clk 0:01:31]} 28. Ne4 {[%clk 0:01:26]}  Nh3+ {[%clk 0:01:25]} 29. Kg2 {[%clk 0:01:25]}  Nf4+ {[%clk 0:01:24]} 30. Kf3 {[%clk 0:01:23]}  Nxd3 {[%clk 0:01:20]} 31. Rb7 {[%clk 0:01:13]}  Rb2 {[%clk 0:00:49]} 32. Ra7 {[%clk 0:00:57]}  Ne1+ {[%clk 0:00:41]} 33. Kg3 {[%clk 0:00:55]}  Rb3+ {[%clk 0:00:40]} 34. Kh4 {[%clk 0:00:49]}  Nf3+ {[%clk 0:00:40]} 35. Kh5 {[%clk 0:00:48]}  Nxh2 {[%clk 0:00:29]} 36. Ng5 {[%clk 0:00:38]}  h6 {[%clk 0:00:23]} 37. Nf7+ {[%clk 0:00:30]}  Kg8 {[%clk 0:00:20]} 38. Nxe5 {[%clk 0:00:27]}  Rh3+ {[%clk 0:00:17]} 39. Kg6 {[%clk 0:00:26]}  Re8 {[%clk 0:00:02]} 40. Rxg7+ {[%clk 0:00:24]}  Kh8 {[%clk 0:00:03]} 41. Nf7# {[%clk 0:00:22]} 1-0


[Site "https://www.chess.com"]

[Event "Titled Tuesday Blitz March 01 Late 2022"]
[White "Perez Torres, Nabi Isaias"]
[Black "Brunner, Nicolas"]
[WhiteFideId "5120373"]
[BlackFideId "620246"]
[WhiteElo "1755"]
[BlackElo "2372"]
[Result "1-0"]
[Round "08"]
[TimeControl "180+1"]
[Date "2022.03.02"]
[WhiteClock "0:00:26"]
[BlackClock "0:00:03"]

1. d4 {[%clk 0:03:00]}  d5 {[%clk 0:02:59]} 2. c4 {[%clk 0:03:01]}  e6 {[%clk 0:02:57]} 3. Nc3 {[%clk 0:03:01]}  Be7 {[%clk 0:02:57]} 4. e3 {[%clk 0:02:56]}  Nf6 {[%clk 0:02:55]} 5. Nf3 {[%clk 0:02:56]}  O-O {[%clk 0:02:53]} 6. Bd3 {[%clk 0:02:56]}  dxc4 {[%clk 0:02:53]} 7. Bxc4 {[%clk 0:02:57]}  c5 {[%clk 0:02:53]} 8. O-O {[%clk 0:02:56]}  Nc6 {[%clk 0:02:49]} 9. dxc5 {[%clk 0:02:41]}  Bxc5 {[%clk 0:02:47]} 10. Qe2 {[%clk 0:02:32]}  a6 {[%clk 0:02:45]} 11. Rd1 {[%clk 0:02:25]}  Qe7 {[%clk 0:02:45]} 12. e4 {[%clk 0:02:22]}  Ng4 {[%clk 0:02:27]} 13. Rf1 {[%clk 0:02:01]}  b5 {[%clk 0:02:17]} 14. Bb3 {[%clk 0:01:56]}  Nce5 {[%clk 0:01:39]} 15. h3 {[%clk 0:01:41]}  Nxf3+ {[%clk 0:01:37]} 16. Qxf3 {[%clk 0:01:42]}  Ne5 {[%clk 0:01:37]} 17. Qg3 {[%clk 0:01:42]}  Ng6 {[%clk 0:01:26]} 18. Bg5 {[%clk 0:01:34]}  f6 {[%clk 0:01:18]} 19. Be3 {[%clk 0:01:20]}  Bxe3 {[%clk 0:01:15]} 20. Qxe3 {[%clk 0:01:21]}  Bb7 {[%clk 0:01:14]} 21. Qb6 {[%clk 0:01:14]}  Nf4 {[%clk 0:00:59]} 22. Rfe1 {[%clk 0:01:06]}  Kh8 {[%clk 0:00:56]} 23. Kh2 {[%clk 0:00:44]}  Rad8 {[%clk 0:00:49]} 24. g3 {[%clk 0:00:39]}  Nd3 {[%clk 0:00:48]} 25. Re2 {[%clk 0:00:36]}  Rd6 {[%clk 0:00:46]} 26. Qe3 {[%clk 0:00:34]}  Rfd8 {[%clk 0:00:42]} 27. Rd2 {[%clk 0:00:32]}  Ne5 {[%clk 0:00:16]} 28. Rxd6 {[%clk 0:00:32]}  Rxd6 {[%clk 0:00:15]} 29. Rd1 {[%clk 0:00:31]}  g6 {[%clk 0:00:14]} 30. f4 {[%clk 0:00:29]}  Nd7 {[%clk 0:00:11]} 31. e5 {[%clk 0:00:26]}  Rxd1 {[%clk 0:00:09]} 32. Nxd1 {[%clk 0:00:26]}  fxe5 {[%clk 0:00:09]} 33. Nf2 {[%clk 0:00:25]}  exf4 {[%clk 0:00:07]} 34. Qxf4 {[%clk 0:00:25]}  Nc5 {[%clk 0:00:06]} 35. Qe5+ {[%clk 0:00:25]}  Kg8 {[%clk 0:00:06]} 36. Ng4 {[%clk 0:00:25]}  Nxb3 {[%clk 0:00:05]} 37. Nh6+ {[%clk 0:00:25]}  Kf8 {[%clk 0:00:03]} 38. Qh8# {[%clk 0:00:26]} 1-0


[Site "https://www.chess.com"]

[Event "Titled Tuesday Blitz March 01 Late 2022"]
[White "Petrovic, Aleksa"]
[Black "Martins, Carlos"]
[WhiteFideId "967629"]
[BlackFideId "2101688"]
[WhiteElo "2139"]
[BlackElo "2183"]
[Result "1-0"]
[Round "08"]
[TimeControl "180+1"]
[Date "2022.03.02"]
[WhiteClock "0:00:52"]
[BlackClock "0:00:11"]

1. Nf3 {[%clk 0:03:00]}  d6 {[%clk 0:02:23]} 2. d4 {[%clk 0:02:59]}  f5 {[%clk 0:02:21]} 3. g3 {[%clk 0:02:57]}  Nf6 {[%clk 0:02:21]} 4. Bg2 {[%clk 0:02:57]}  g6 {[%clk 0:02:21]} 5. O-O {[%clk 0:02:57]}  Bg7 {[%clk 0:02:21]} 6. c3 {[%clk 0:02:55]}  O-O {[%clk 0:02:20]} 7. Qb3+ {[%clk 0:02:55]}  Kh8 {[%clk 0:02:20]} 8. Ng5 {[%clk 0:02:55]}  d5 {[%clk 0:02:17]} 9. Nd2 {[%clk 0:02:50]}  Ne4 {[%clk 0:02:06]} 10. Ndf3 {[%clk 0:02:47]}  h6 {[%clk 0:01:52]} 11. Nxe4 {[%clk 0:02:41]}  fxe4 {[%clk 0:01:53]} 12. Ne5 {[%clk 0:02:42]}  Kh7 {[%clk 0:01:53]} 13. f3 {[%clk 0:02:24]}  exf3 {[%clk 0:01:50]} 14. Rxf3 {[%clk 0:02:25]}  c6 {[%clk 0:01:48]} 15. Rxf8 {[%clk 0:02:00]}  Qxf8 {[%clk 0:01:44]} 16. Qc2 {[%clk 0:02:00]}  Bf5 {[%clk 0:01:41]} 17. e4 {[%clk 0:02:00]}  dxe4 {[%clk 0:01:40]} 18. Bxe4 {[%clk 0:02:00]}  Bxe5 {[%clk 0:01:30]} 19. dxe5 {[%clk 0:01:57]}  Nd7 {[%clk 0:01:29]} 20. Bxf5 {[%clk 0:01:44]}  Qxf5 {[%clk 0:01:28]} 21. Qxf5 {[%clk 0:01:44]}  gxf5 {[%clk 0:01:28]} 22. Bf4 {[%clk 0:01:40]}  Nc5 {[%clk 0:01:20]} 23. Rd1 {[%clk 0:01:36]}  Kg6 {[%clk 0:01:12]} 24. b4 {[%clk 0:01:33]}  Na4 {[%clk 0:01:11]} 25. Rd7 {[%clk 0:01:29]}  Nxc3 {[%clk 0:00:46]} 26. Rxb7 {[%clk 0:01:29]}  Kf7 {[%clk 0:00:38]} 27. Bxh6 {[%clk 0:01:17]}  Ke6 {[%clk 0:00:35]} 28. Rc7 {[%clk 0:01:10]}  Nxa2 {[%clk 0:00:28]} 29. Rxc6+ {[%clk 0:01:05]}  Kxe5 {[%clk 0:00:27]} 30. Bd2 {[%clk 0:00:58]}  Rd8 {[%clk 0:00:17]} 31. Rc2 {[%clk 0:00:58]}  Nxb4 {[%clk 0:00:14]} 32. Bxb4 {[%clk 0:00:55]}  Rd1+ {[%clk 0:00:14]} 33. Kg2 {[%clk 0:00:55]}  Ke4 {[%clk 0:00:15]} 34. Re2+ {[%clk 0:00:55]}  Kd3 {[%clk 0:00:14]} 35. Rxe7 {[%clk 0:00:54]}  Ra1 {[%clk 0:00:14]} 36. h4 {[%clk 0:00:53]}  a5 {[%clk 0:00:14]} 37. Bd6 {[%clk 0:00:53]}  a4 {[%clk 0:00:13]} 38. h5 {[%clk 0:00:53]}  a3 {[%clk 0:00:13]} 39. h6 {[%clk 0:00:53]}  a2 {[%clk 0:00:13]} 40. Ra7 {[%clk 0:00:52]}  Ke4 {[%clk 0:00:11]} 41. h7 {[%clk 0:00:52]} 1-0


[Site "https://www.chess.com"]

[Event "Titled Tuesday Blitz March 01 Late 2022"]
[White "Pinheiro, Iung Alicio de O."]
[Black "Csonka, Balazs"]
[WhiteFideId "2104350"]
[BlackFideId "742910"]
[WhiteElo "2529"]
[BlackElo "2404"]
[Result "0-1"]
[Round "08"]
[TimeControl "180+1"]
[Date "2022.03.02"]
[WhiteClock "0:00:35"]
[BlackClock "0:00:16"]

1. e4 {[%clk 0:03:00]}  c6 {[%clk 0:02:59]} 2. d4 {[%clk 0:02:56]}  d5 {[%clk 0:03:00]} 3. e5 {[%clk 0:02:56]}  c5 {[%clk 0:02:56]} 4. dxc5 {[%clk 0:02:55]}  e6 {[%clk 0:02:57]} 5. a3 {[%clk 0:02:55]}  Bxc5 {[%clk 0:02:56]} 6. Nf3 {[%clk 0:02:55]}  Ne7 {[%clk 0:02:54]} 7. Bd3 {[%clk 0:02:55]}  a6 {[%clk 0:02:47]} 8. O-O {[%clk 0:02:54]}  Nd7 {[%clk 0:02:47]} 9. b4 {[%clk 0:02:53]}  Ba7 {[%clk 0:02:44]} 10. Bb2 {[%clk 0:02:54]}  b5 {[%clk 0:02:38]} 11. a4 {[%clk 0:02:50]}  bxa4 {[%clk 0:02:38]} 12. c4 {[%clk 0:02:44]}  dxc4 {[%clk 0:02:34]} 13. Bxc4 {[%clk 0:02:44]}  O-O {[%clk 0:02:23]} 14. Qe2 {[%clk 0:02:30]}  Bb7 {[%clk 0:02:07]} 15. Nbd2 {[%clk 0:02:29]}  Ng6 {[%clk 0:01:53]} 16. g3 {[%clk 0:02:27]}  Nb6 {[%clk 0:01:41]} 17. Bxa6 {[%clk 0:02:07]}  Bxa6 {[%clk 0:01:34]} 18. Qxa6 {[%clk 0:02:08]}  Nd5 {[%clk 0:01:32]} 19. Qc4 {[%clk 0:02:00]}  Qb8 {[%clk 0:01:27]} 20. b5 {[%clk 0:01:56]}  Rc8 {[%clk 0:01:23]} 21. Qd3 {[%clk 0:01:39]}  Nb4 {[%clk 0:01:00]} 22. Qe2 {[%clk 0:01:33]}  Qb7 {[%clk 0:00:47]} 23. Kh1 {[%clk 0:01:21]}  Rc2 {[%clk 0:00:39]} 24. Ba3 {[%clk 0:01:13]}  Rxd2 {[%clk 0:00:36]} 25. Qxd2 {[%clk 0:01:05]}  Qxf3+ {[%clk 0:00:36]} 26. Kg1 {[%clk 0:01:05]}  Nd3 {[%clk 0:00:26]} 27. Ra2 {[%clk 0:00:57]}  Ndf4 {[%clk 0:00:17]} 28. gxf4 {[%clk 0:00:35]}  Nh4 {[%clk 0:00:16]} 0-1


[Site "https://www.chess.com"]

[Event "Titled Tuesday Blitz March 01 Late 2022"]
[White "Rangel, Daniel"]
[Black "Hoffmann, Asa"]
[WhiteFideId "2124475"]
[BlackFideId "2001470"]
[WhiteElo "2187"]
[BlackElo "2117"]
[Result "0-1"]
[Round "08"]
[TimeControl "180+1"]
[Date "2022.03.02"]
[WhiteClock "0:00:03"]
[BlackClock "0:00:46"]

1. d4 {[%clk 0:03:00]}  Nf6 {[%clk 0:02:59]} 2. c4 {[%clk 0:03:00]}  c5 {[%clk 0:02:59]} 3. d5 {[%clk 0:02:59]}  e5 {[%clk 0:02:59]} 4. Nc3 {[%clk 0:02:55]}  d6 {[%clk 0:02:58]} 5. e4 {[%clk 0:02:56]}  Be7 {[%clk 0:02:58]} 6. g3 {[%clk 0:02:57]}  O-O {[%clk 0:02:57]} 7. Bg2 {[%clk 0:02:57]}  Na6 {[%clk 0:02:57]} 8. Nf3 {[%clk 0:02:57]}  Ne8 {[%clk 0:02:55]} 9. O-O {[%clk 0:02:57]}  Bd7 {[%clk 0:02:54]} 10. Ne1 {[%clk 0:02:56]}  Nec7 {[%clk 0:02:52]} 11. a4 {[%clk 0:02:54]}  Nb4 {[%clk 0:02:51]} 12. Nd3 {[%clk 0:02:53]}  Bf6 {[%clk 0:02:48]} 13. h3 {[%clk 0:02:50]}  b6 {[%clk 0:02:46]} 14. Kh2 {[%clk 0:02:49]}  a6 {[%clk 0:02:46]} 15. f4 {[%clk 0:02:42]}  Nxd3 {[%clk 0:02:44]} 16. Qxd3 {[%clk 0:02:43]}  Qe7 {[%clk 0:02:43]} 17. f5 {[%clk 0:02:03]}  b5 {[%clk 0:02:43]} 18. axb5 {[%clk 0:02:00]}  axb5 {[%clk 0:02:43]} 19. Rxa8 {[%clk 0:02:00]}  Rxa8 {[%clk 0:02:42]} 20. cxb5 {[%clk 0:01:56]}  Rb8 {[%clk 0:02:37]} 21. Qd2 {[%clk 0:01:47]}  Nxb5 {[%clk 0:02:33]} 22. Nxb5 {[%clk 0:01:46]}  Bxb5 {[%clk 0:02:32]} 23. Rf3 {[%clk 0:01:43]}  h6 {[%clk 0:02:31]} 24. Rb3 {[%clk 0:01:32]}  Rb7 {[%clk 0:02:19]} 25. Qa5 {[%clk 0:01:24]}  Qd7 {[%clk 0:02:09]} 26. Qa8+ {[%clk 0:01:03]}  Kh7 {[%clk 0:02:07]} 27. Bf1 {[%clk 0:00:48]}  Ba6 {[%clk 0:01:56]} 28. Rxb7 {[%clk 0:00:44]}  Bxb7 {[%clk 0:01:53]} 29. Qa7 {[%clk 0:00:44]}  Qc8 {[%clk 0:01:46]} 30. Qb6 {[%clk 0:00:43]}  Qd7 {[%clk 0:01:33]} 31. Bb5 {[%clk 0:00:42]}  Qe7 {[%clk 0:01:32]} 32. Bd2 {[%clk 0:00:37]}  Bg5 {[%clk 0:01:29]} 33. Bxg5 {[%clk 0:00:31]}  Qxg5 {[%clk 0:01:29]} 34. Qxb7 {[%clk 0:00:26]}  Qd2+ {[%clk 0:01:27]} 35. Kg1 {[%clk 0:00:27]}  Qe3+ {[%clk 0:01:20]} 36. Kf1 {[%clk 0:00:25]}  Qf3+ {[%clk 0:01:16]} 37. Ke1 {[%clk 0:00:24]}  Qxg3+ {[%clk 0:01:14]} 38. Kd1 {[%clk 0:00:23]}  Qg1+ {[%clk 0:01:10]} 39. Kc2 {[%clk 0:00:23]}  Qf2+ {[%clk 0:01:06]} 40. Kd1 {[%clk 0:00:17]}  Qd4+ {[%clk 0:01:04]} 41. Kc1 {[%clk 0:00:17]}  Qxe4 {[%clk 0:01:02]} 42. Qc6 {[%clk 0:00:13]}  Qe1+ {[%clk 0:00:47]} 43. Kc2 {[%clk 0:00:12]}  e4 {[%clk 0:00:47]} 44. Qxd6 {[%clk 0:00:09]}  e3 {[%clk 0:00:47]} 45. Bd3 {[%clk 0:00:05]}  Qd2+ {[%clk 0:00:46]} 46. Kb1 {[%clk 0:00:02]}  Qxd3+ {[%clk 0:00:46]} 47. Ka1 {[%clk 0:00:03]}  e2 {[%clk 0:00:46]} 0-1


[Site "https://www.chess.com"]

[Event "Titled Tuesday Blitz March 01 Late 2022"]
[White "Riehle, Marco"]
[Black "Gelman, Alexander"]
[WhiteFideId "12904392"]
[BlackFideId "4118316"]
[WhiteElo "2462"]
[BlackElo "2375"]
[Result "0-1"]
[Round "08"]
[TimeControl "180+1"]
[Date "2022.03.01"]
[WhiteClock "0:02:16"]
[BlackClock "0:02:08"]

1. d4 {[%clk 0:02:59]}  Nf6 {[%clk 0:02:58]} 2. Nf3 {[%clk 0:02:59]}  c5 {[%clk 0:02:58]} 3. e3 {[%clk 0:02:59]}  d6 {[%clk 0:02:58]} 4. Bd3 {[%clk 0:02:59]}  Nbd7 {[%clk 0:02:58]} 5. O-O {[%clk 0:02:58]}  e6 {[%clk 0:02:58]} 6. Nbd2 {[%clk 0:02:58]}  b6 {[%clk 0:02:58]} 7. c3 {[%clk 0:02:58]}  Bb7 {[%clk 0:02:58]} 8. e4 {[%clk 0:02:57]}  cxd4 {[%clk 0:02:50]} 9. cxd4 {[%clk 0:02:57]}  Be7 {[%clk 0:02:50]} 10. Re1 {[%clk 0:02:51]}  O-O {[%clk 0:02:50]} 11. Nf1 {[%clk 0:02:48]}  Rc8 {[%clk 0:02:44]} 12. Ng3 {[%clk 0:02:48]}  Qc7 {[%clk 0:02:37]} 13. h3 {[%clk 0:02:44]}  Qb8 {[%clk 0:02:36]} 14. Bg5 {[%clk 0:02:40]}  h6 {[%clk 0:02:33]} 15. Bh4 {[%clk 0:02:39]}  Rfe8 {[%clk 0:02:28]} 16. e5 {[%clk 0:02:32]}  dxe5 {[%clk 0:02:24]} 17. dxe5 {[%clk 0:02:25]}  Bxf3 {[%clk 0:02:22]} 18. Qxf3 {[%clk 0:02:23]}  Nxe5 {[%clk 0:02:22]} 19. Qe3 {[%clk 0:02:20]}  Nxd3 {[%clk 0:02:19]} 20. Qxd3 {[%clk 0:02:19]}  g5 {[%clk 0:02:15]} 21. Ne4 {[%clk 0:02:20]}  gxh4 {[%clk 0:02:08]} 22. Nxf6+ {[%clk 0:02:17]}  Bxf6 {[%clk 0:02:08]} 23. Qf3 {[%clk 0:02:16]} 0-1


[Site "https://www.chess.com"]

[Event "Titled Tuesday Blitz March 01 Late 2022"]
[White "Rosen, Eric"]
[Black "Holt, Conrad"]
[WhiteFideId "2032562"]
[BlackFideId "2034387"]
[WhiteElo "2362"]
[BlackElo "2586"]
[Result "0-1"]
[Round "08"]
[TimeControl "180+1"]
[Date "2022.03.01"]
[WhiteClock "0:00:01"]
[BlackClock "0:00:42"]

1. d4 {[%clk 0:03:00]}  d5 {[%clk 0:03:00]} 2. Bf4 {[%clk 0:02:59]}  c5 {[%clk 0:02:59]} 3. e3 {[%clk 0:02:59]}  Nc6 {[%clk 0:02:59]} 4. Nf3 {[%clk 0:02:59]}  e6 {[%clk 0:02:55]} 5. Nbd2 {[%clk 0:02:55]}  Bd6 {[%clk 0:02:54]} 6. Bg3 {[%clk 0:02:54]}  Nge7 {[%clk 0:02:46]} 7. Bxd6 {[%clk 0:02:42]}  Qxd6 {[%clk 0:02:46]} 8. dxc5 {[%clk 0:02:43]}  Qxc5 {[%clk 0:02:46]} 9. c4 {[%clk 0:02:44]}  O-O {[%clk 0:02:42]} 10. Rc1 {[%clk 0:02:40]}  d4 {[%clk 0:02:39]} 11. exd4 {[%clk 0:02:14]}  Nxd4 {[%clk 0:02:39]} 12. Bd3 {[%clk 0:02:13]}  Rd8 {[%clk 0:02:30]} 13. O-O {[%clk 0:01:55]}  Ng6 {[%clk 0:02:22]} 14. Bxg6 {[%clk 0:01:40]}  hxg6 {[%clk 0:02:22]} 15. Nxd4 {[%clk 0:01:34]}  Qxd4 {[%clk 0:02:15]} 16. Nf3 {[%clk 0:01:24]}  Qf6 {[%clk 0:02:14]} 17. Qc2 {[%clk 0:01:10]}  b6 {[%clk 0:02:08]} 18. Qc3 {[%clk 0:00:58]}  Bb7 {[%clk 0:02:07]} 19. b4 {[%clk 0:00:48]}  Bxf3 {[%clk 0:01:55]} 20. Qxf3 {[%clk 0:00:48]}  Qxf3 {[%clk 0:01:54]} 21. gxf3 {[%clk 0:00:48]}  Rd2 {[%clk 0:01:51]} 22. Rfd1 {[%clk 0:00:44]}  Rxa2 {[%clk 0:01:51]} 23. c5 {[%clk 0:00:44]}  bxc5 {[%clk 0:01:20]} 24. bxc5 {[%clk 0:00:45]}  Rb2 {[%clk 0:01:17]} 25. c6 {[%clk 0:00:42]}  Rbb8 {[%clk 0:01:16]} 26. Rd7 {[%clk 0:00:34]}  a5 {[%clk 0:01:13]} 27. Rb7 {[%clk 0:00:28]}  Rc8 {[%clk 0:01:10]} 28. c7 {[%clk 0:00:15]}  a4 {[%clk 0:01:05]} 29. Rc2 {[%clk 0:00:15]}  a3 {[%clk 0:01:02]} 30. Ra2 {[%clk 0:00:15]}  Kf8 {[%clk 0:01:01]} 31. Kg2 {[%clk 0:00:16]}  Ke7 {[%clk 0:01:01]} 32. Rb3 {[%clk 0:00:16]}  Rxc7 {[%clk 0:01:00]} 33. Rbxa3 {[%clk 0:00:17]}  Rxa3 {[%clk 0:00:57]} 34. Rxa3 {[%clk 0:00:18]}  Kf6 {[%clk 0:00:57]} 35. Ra5 {[%clk 0:00:18]}  Rd7 {[%clk 0:00:56]} 36. Rb5 {[%clk 0:00:19]}  Rd5 {[%clk 0:00:56]} 37. Rb4 {[%clk 0:00:19]}  Rg5+ {[%clk 0:00:56]} 38. Kf1 {[%clk 0:00:18]}  Kf5 {[%clk 0:00:55]} 39. h4 {[%clk 0:00:15]}  Rh5 {[%clk 0:00:54]} 40. Kg2 {[%clk 0:00:15]}  Kf6 {[%clk 0:00:53]} 41. Kg3 {[%clk 0:00:15]}  Rd5 {[%clk 0:00:52]} 42. Rf4+ {[%clk 0:00:15]}  Ke7 {[%clk 0:00:52]} 43. Ra4 {[%clk 0:00:16]}  Rd3 {[%clk 0:00:51]} 44. Ra7+ {[%clk 0:00:17]}  Kf6 {[%clk 0:00:51]} 45. Ra4 {[%clk 0:00:17]}  e5 {[%clk 0:00:50]} 46. Rb4 {[%clk 0:00:16]}  Kf5 {[%clk 0:00:50]} 47. Rg4 {[%clk 0:00:15]}  Rd4 {[%clk 0:00:48]} 48. Rg5+ {[%clk 0:00:14]}  Kf6 {[%clk 0:00:48]} 49. Kh3 {[%clk 0:00:14]}  Rf4 {[%clk 0:00:45]} 50. Kg3 {[%clk 0:00:06]}  Ke6 {[%clk 0:00:43]} 51. h5 {[%clk 0:00:02]}  Rf5 {[%clk 0:00:42]} 52. hxg6 {[%clk 0:00:01]}  Rxg5+ {[%clk 0:00:42]} 53. Kh4 {[%clk 0:00:01]}  Rxg6 {[%clk 0:00:42]} 0-1


[Site "https://www.chess.com"]